bitfinex/quotes_ETHUSD_20250406
["timestamp","ask_amount","ask_price","bid_price","bid_amount"]
[1743955966656,3.0,1752.7,1752.6,5.438]
[1743955968284,6.99383,1752.7,1752.6,5.438]
[1743955970786,3.0,1752.7,1752.6,5.438]
[1743955974294,6.99383,1752.7,1752.6,5.438]
[1743955974662,8.58056862,1752.7,1752.6,5.438]
[1743955975079,12.57460862,1752.7,1752.5,6.16]
[1743955975270,8.78541106,1752.6,1752.5,6.16]
[1743955976788,4.79135106,1752.6,1752.5,6.16]
[1743955977391,6.12854303,1752.6,1752.5,6.16]
[1743955977992,6.25649075,1752.6,1752.5,6.16]
[1743955978691,10.25055075,1752.6,1752.5,6.16]
[1743955980392,5.46359075,1752.6,1752.5,6.16]
[1743955980993,0.12794772,1752.6,1752.5,10.96009]
[1743955981501,3.0,1752.8,1752.5,10.96009]
[1743955981713,3.0,1752.8,1752.6,3.99404]
[1743955981910,0.12803225,1752.7,1752.6,3.99404]
[1743955982072,0.12803225,1752.7,1752.6,10.15404]
[1743955982508,0.12803225,1752.7,1752.6,6.16]
[1743955982801,0.12803225,1752.7,1752.6,10.15406]
[1743955983376,0.12803225,1752.7,1752.6,10.95986]
[1743955983575,3.99845106,1753.1,1752.6,10.95973]
[1743955983774,3.99845106,1753.3,1752.8,0.8058]
[1743955984014,3.99845106,1753.3,1753.0,3.99307]
[1743955984306,7.99103106,1753.3,1753.0,6.16]
[1743955984611,3.0,1753.2,1753.0,6.16]
[1743955985105,6.99845106,1753.3,1753.0,10.15298]
[1743955985677,10.99093106,1753.3,1753.0,6.16]
[1743955986079,3.0,1753.2,1753.1,0.8058]
[1743955986909,6.99269,1753.2,1753.0,6.16]
[1743955987112,3.99845106,1753.1,1753.0,6.16]
[1743955988018,3.99845106,1753.1,1753.0,10.15315]
[1743955988228,3.0,1753.2,1753.0,10.15315]
[1743955988594,3.0,1753.2,1753.0,6.16]
[1743955989134,3.0,1753.2,1753.0,10.15301]
[1743955989338,0.8005,1753.6,1753.1,0.8058]
[1743955989497,3.99845106,1753.5,1753.2,3.99259]
[1743955989817,3.0,1753.4,1753.3,5.435]
[1743955993035,3.12177265,1753.4,1753.3,5.435]
[1743955998025,0.12177265,1753.4,1753.3,11.595]
[1743955998229,0.12177265,1753.4,1753.3,16.39437]
[1743955998546,3.99845106,1753.7,1753.4,3.99224]
[1743955998748,0.11347463,1753.6,1753.5,6.16]
[1743955999063,6.99845106,1753.7,1753.5,6.16]
[1743955999268,0.1136238,1753.6,1753.5,6.16]
[1743955999561,6.99845106,1753.7,1753.5,10.15201]
[1743955999863,0.11372533,1753.6,1753.5,6.16]
[1743956000365,0.11369838,1753.6,1753.5,6.16]
[1743956000522,6.99845106,1753.7,1753.5,6.16]
[1743956000728,0.11369838,1753.6,1753.5,6.16]
[1743956000929,6.99845106,1753.7,1753.5,10.15187]
[1743956001271,3.0,1753.7,1753.6,4.79868]
[1743956001426,4.04845106,1753.9,1753.6,4.79868]
[1743956001647,4.04845106,1753.9,1753.8,3.99133]
[1743956002047,7.04845106,1753.9,1753.8,3.99133]
[1743956002917,7.04845106,1753.9,1753.7,11.593]
[1743956003800,7.04845106,1753.9,1753.7,15.58455]
[1743956004279,7.04845106,1753.9,1753.8,3.99133]
[1743956005107,4.04845106,1753.9,1753.7,19.57603]
[1743956005250,0.05,1753.9,1753.8,3.99133]
[1743956005892,0.05,1753.9,1753.8,4.79823]
[1743956007470,0.05,1753.9,1753.8,0.8069]
[1743956007670,3.99133,1753.8,1753.7,6.16]
[1743956007881,6.99133,1753.8,1753.7,6.16]
[1743956008173,0.8195,1753.6,1753.4,11.592]
[1743956008487,3.99845106,1753.5,1753.4,11.592]
[1743956009055,3.99845106,1753.5,1753.4,6.16]
[1743956009386,7.99046106,1753.5,1753.4,6.16]
[1743956010373,7.99046106,1753.5,1753.1,3.99276]
[1743956010374,4.81199,1753.3,1753.1,11.592]
[1743956010576,8.81044106,1753.3,1753.1,11.592]
[1743956011078,7.99094106,1753.3,1753.1,11.592]
[1743956011246,12.82064617,1753.5,1753.1,15.58483]
[1743956011453,11.54047106,1753.5,1753.1,15.58483]
[1743956011674,11.54053106,1753.5,1753.1,15.58483]
[1743956012156,3.99229,1753.4,1753.1,11.592]
[1743956012883,3.0,1753.5,1753.2,4.78625]
[1743956013350,6.99845106,1753.5,1753.2,0.7937]
[1743956013550,3.0,1753.5,1753.4,3.99224]
[1743956013984,8.86467106,1753.9,1753.4,10.15224]
[1743956014282,3.160947,1753.8,1753.5,10.2177]
[1743956014795,7.152277,1753.8,1753.5,10.2177]
[1743956014964,7.152277,1753.8,1753.5,6.2257]
[1743956015469,3.0,1753.6,1753.5,5.432]
[1743956015877,3.15966548,1753.6,1753.5,5.432]
[1743956016304,0.15966548,1753.6,1753.5,5.432]
[1743956016600,10.98283,1753.8,1753.5,5.432]
[1743956016760,0.15966548,1753.6,1753.5,5.432]
[1743956016962,10.98283,1753.8,1753.5,5.432]
[1743956017205,0.16030627,1753.7,1753.5,5.432]
[1743956018218,3.0,1753.6,1753.5,5.432]
[1743956018566,3.15966548,1753.6,1753.5,5.432]
[1743956021087,7.15146548,1753.6,1753.4,6.16]
[1743956021409,12.73782713,1753.6,1753.4,6.16]
[1743956021597,8.74583713,1753.6,1753.4,6.16]
[1743956021791,3.15966548,1753.6,1753.4,6.16]
[1743956021991,0.15966548,1753.6,1753.4,6.16]
[1743956022303,0.15966548,1753.6,1753.5,4.78521]
[1743956022490,3.8522,1753.9,1753.6,3.99177]
[1743956022804,3.05,1753.9,1753.6,3.99177]
[1743956022970,0.160947,1753.8,1753.6,3.99177]
[1743956023171,0.160947,1753.8,1753.5,4.78515]
[1743956023676,0.160947,1753.8,1753.6,0.43167436]
[1743956024303,4.152377,1753.8,1753.6,0.43167436]
[1743956024516,4.79376,1753.7,1753.4,10.15221]
[1743956024803,8.95208371,1753.7,1753.4,6.16]
[1743956025595,8.95208371,1753.7,1753.4,10.15219]
[1743956025794,8.95208371,1753.7,1753.5,0.43177993]
[1743956025985,4.96052371,1753.7,1753.5,0.43177993]
[1743956027003,4.96052371,1753.7,1753.4,10.15222]
[1743956027186,8.95211371,1753.7,1753.4,6.16]
[1743956027388,4.96052371,1753.7,1753.4,6.16]
[1743956027587,4.96052371,1753.7,1753.4,10.15214]
[1743956028709,8.95209371,1753.7,1753.5,0.43190464]
[1743956028877,10.39835856,1753.7,1753.5,0.43190464]
[1743956029809,3.0,1753.6,1753.5,0.43190464]
[1743956030012,3.0,1753.6,1753.3,3.99242]
[1743956030729,3.0,1753.6,1753.2,9.42364]
[1743956031025,4.74361,1753.4,1753.2,5.431]
[1743956031176,4.74361,1753.4,1753.3,0.43191936]
[1743956031382,7.74361,1753.4,1753.3,0.43191936]
[1743956031979,7.74361,1753.4,1753.2,5.431]
[1743956032280,3.99845106,1753.3,1753.2,5.431]
[1743956032482,5.17265717,1753.3,1753.1,6.16]
[1743956032676,7.54279,1753.2,1752.8,0.7921]
[1743956032916,7.54279,1753.2,1752.8,5.431]
[1743956032917,3.99845106,1753.0,1752.8,5.431]
[1743956033100,7.99173106,1753.0,1752.8,5.431]
[1743956033611,11.54173106,1753.0,1752.9,0.43195127]
[1743956034516,13.17034217,1753.0,1752.9,0.43195127]
[1743956034721,13.17034217,1753.0,1752.7,11.592]
[1743956034907,7.54845106,1753.0,1752.7,11.592]
[1743956035092,7.54845106,1753.0,1752.8,3.99358]
[1743956035282,3.0,1753.0,1752.8,3.99352]
[1743956035602,3.0,1753.0,1752.8,3.99346]
[1743956035777,3.0,1753.0,1752.9,3.99338]
[1743956036201,3.99845106,1753.1,1752.9,3.99338]
[1743956036512,0.8144,1753.4,1753.1,3.9929]
[1743956036711,0.8144,1753.4,1753.1,9.4239]
[1743956036917,3.0,1753.2,1753.1,9.4239]
[1743956037783,3.0,1753.2,1753.1,5.431]
[1743956038191,3.0,1753.2,1753.1,9.42392]
[1743956039232,3.0,1753.2,1753.1,5.431]
[1743956041117,3.0,1753.4,1753.2,3.99269]
[1743956042024,3.0,1753.4,1753.1,13.41652]
[1743956042529,3.0,1753.4,1753.2,3.99262]
[1743956042898,3.0,1753.4,1753.2,3.99261]
[1743956043225,3.0,1753.4,1753.2,4.82321]
[1743956044329,3.0,1753.4,1753.2,0.8306]
[1743956044524,6.99845106,1753.4,1753.2,0.8306]
[1743956044717,10.99069106,1753.4,1753.1,9.42379]
[1743956045227,3.99845106,1753.2,1753.1,5.432]
[1743956045647,7.99114106,1753.2,1753.1,5.432]
[1743956046147,3.99845106,1753.2,1753.1,5.432]
[1743956046309,3.99301,1753.1,1752.9,5.432]
[1743956046629,3.0,1753.1,1752.9,9.42516]
[1743956046835,3.0,1753.4,1753.1,3.99287]
[1743956047022,3.0,1753.4,1753.0,3.99315]
[1743956047343,3.0,1753.4,1753.2,3.99249]
[1743956047651,3.0,1753.4,1753.1,4.42444947]
[1743956047807,6.99229,1753.4,1753.1,0.43152947]
[1743956048327,3.0,1753.4,1753.2,3.99266]
[1743956048505,3.0,1753.4,1753.1,4.42444947]
[1743956048922,3.0,1753.4,1753.2,0.43152947]
[1743956049115,3.99845106,1753.3,1753.2,0.43152947]
[1743956050015,3.0,1753.4,1753.2,4.42418947]
[1743956050236,3.0,1753.4,1753.2,3.99266]
[1743956050545,3.0,1753.4,1753.1,3.99282]
[1743956051130,6.9923,1753.4,1753.0,14.14628]
[1743956051320,3.0,1753.4,1753.1,3.99284]
[1743956051525,3.0,1753.4,1753.1,4.42447591]
[1743956052021,6.99227,1753.4,1753.1,0.43163591]
[1743956052418,6.99227,1753.4,1753.1,4.42452591]
[1743956052939,6.99227,1753.4,1753.2,0.43163591]
[1743956053145,3.99845106,1753.3,1753.2,0.43163591]
[1743956054547,7.99092106,1753.3,1753.2,0.43163591]
[1743956055042,3.99845106,1753.3,1753.2,0.43163591]
[1743956055727,3.0,1753.4,1753.3,3.99247]
[1743956055927,3.0,1753.6,1753.4,3.99224]
[1743956056147,3.0,1753.6,1753.4,7.98448]
[1743956056350,3.0,1753.6,1753.3,9.4234]
[1743956056557,3.99845106,1753.5,1753.3,5.431]
[1743956057020,7.99053106,1753.5,1753.3,5.431]
[1743956057221,3.99845106,1753.5,1753.3,5.431]
[1743956057437,3.99845106,1753.5,1753.3,9.42343]
[1743956058019,3.99845106,1753.5,1753.3,5.431]
[1743956058353,7.99054106,1753.5,1753.3,5.431]
[1743956058646,3.99845106,1753.5,1753.3,5.431]
[1743956059254,7.99048106,1753.5,1753.3,5.431]
[1743956059545,3.99845106,1753.5,1753.3,5.431]
[1743956059853,7.99047106,1753.5,1753.3,5.431]
[1743956061770,11.98263106,1753.5,1753.3,5.431]
[1743956062047,3.99845106,1753.5,1753.3,5.431]
[1743956062757,7.99058106,1753.5,1753.3,5.431]
[1743956063249,3.99845106,1753.5,1753.3,5.431]
[1743956063939,7.99047106,1753.5,1753.3,5.431]
[1743956064127,3.99845106,1753.5,1753.3,5.431]
[1743956064522,3.99845106,1753.5,1753.3,9.42333]
[1743956064724,3.0,1753.6,1753.4,0.7669]
[1743956065030,6.99845106,1753.8,1753.4,4.75911]
[1743956065347,0.15959952,1753.7,1753.5,3.99189]
[1743956065726,0.15959952,1753.7,1753.4,4.75907]
[1743956066533,7.98979106,1753.8,1753.5,3.99194]
[1743956066737,3.0,1753.7,1753.5,3.99194]
[1743956066940,7.15118952,1753.7,1753.4,4.75907]
[1743956067123,7.15118952,1753.7,1753.6,0.43238329]
[1743956067764,7.15118952,1753.7,1753.4,4.75907]
[1743956068557,3.15959952,1753.7,1753.4,4.75905]
[1743956068756,3.15959952,1753.7,1753.5,4.42430097]
[1743956068936,0.15959952,1753.7,1753.6,9.42178]
[1743956069268,0.15982452,1753.7,1753.6,9.42178]
[1743956069461,3.05,1753.9,1753.6,9.42178]
[1743956069922,7.04114,1753.9,1753.7,0.43231097]
[1743956070632,3.05,1753.9,1753.7,0.43231097]
[1743956070839,7.76815106,1753.8,1753.7,0.43231097]
[1743956071128,11.75948106,1753.8,1753.6,5.43]
[1743956071747,6.99845106,1753.8,1753.6,5.43]
[1743956072463,3.0,1753.8,1753.6,9.42166]
[1743956073428,3.0,1753.8,1753.6,5.43]
[1743956073634,3.0,1753.8,1753.6,9.42177]
[1743956073857,4.04118,1753.9,1753.6,9.42177]
[1743956074156,3.05,1753.9,1753.7,0.43182483]
[1743956074955,7.0412,1753.9,1753.7,0.43182483]
[1743956075165,11.03247,1753.9,1753.7,0.43182483]
[1743956075354,3.05,1753.9,1753.7,5.24537483]
[1743956075853,3.05,1753.9,1753.7,4.81355]
[1743956076054,3.05,1753.9,1753.7,0.822]
[1743956076935,7.04119,1753.9,1753.6,5.43]
[1743956077637,3.99845106,1753.8,1753.6,5.43]
[1743956080256,7.04119,1753.9,1753.6,9.4217]
[1743956080257,3.05,1753.9,1753.6,9.4217]
[1743956080636,3.05,1753.9,1753.7,0.43171089]
[1743956081592,3.05,1753.9,1753.7,4.42316089]
[1743956081946,3.05,1753.9,1753.6,9.4217]
[1743956082985,7.04111,1753.9,1753.6,5.43]
[1743956084087,7.04111,1753.9,1753.7,0.43173966]
[1743956084760,6.99845106,1753.8,1753.7,0.43173966]
[1743956084987,12.30368106,1753.8,1753.7,0.43173966]
[1743956085186,3.99178,1753.6,1753.5,11.589]
[1743956085389,7.99023106,1753.6,1753.5,11.589]
[1743956085564,3.99232,1753.4,1753.1,0.7742]
[1743956085763,3.99845106,1753.2,1753.0,6.16]
[1743956086001,3.99845106,1753.2,1753.1,5.429]
[1743956086206,3.99845106,1753.2,1753.1,5.86100571]
[1743956086708,10.99114106,1753.2,1753.1,0.43200571]
[1743956086864,13.54622417,1753.2,1753.1,0.43200571]
[1743956087363,3.0,1753.1,1753.0,6.16]
[1743956090206,3.99845106,1753.3,1753.0,6.16]
[1743956090407,3.99845106,1753.4,1753.1,0.8177]
[1743956090612,3.99845106,1753.4,1753.1,4.81062]
[1743956091583,3.0,1753.3,1753.1,0.8177]
[1743956091920,3.99845106,1753.4,1753.1,4.81059]
[1743956092312,3.0,1753.3,1753.1,0.8177]
[1743956092915,3.0,1753.5,1753.2,3.99269]
[1743956093223,7.7486,1753.6,1753.3,5.43]
[1743956093381,6.9919,1753.6,1753.3,5.43]
[1743956093585,3.0,1753.6,1753.3,5.43]
[1743956093799,6.99182,1753.6,1753.3,5.43]
[1743956094924,6.99182,1753.6,1753.3,9.42246]
[1743956095417,6.99182,1753.6,1753.3,5.43]
[1743956097114,3.0,1753.6,1753.3,9.42234]
[1743956097317,3.0,1753.6,1753.4,4.81224]
[1743956097622,3.0,1753.6,1753.4,6.98]
[1743956100601,10.99046106,1753.5,1753.4,6.16]
[1743956101424,3.0,1753.5,1753.4,6.16]
[1743956101626,3.99845106,1753.8,1753.5,0.82]
[1743956101802,3.99845106,1753.8,1753.5,4.8119]
[1743956101987,3.99845106,1753.8,1753.5,4.81186]
[1743956101988,3.0,1753.7,1753.5,4.81186]
[1743956102819,3.0,1753.7,1753.4,10.15222]
[1743956103023,7.99025106,1753.6,1753.4,6.16]
[1743956103226,8.80355106,1753.6,1753.4,6.16]
[1743956103393,8.80355106,1753.6,1753.3,5.429]
[1743956103394,10.98436,1753.5,1753.3,5.429]
[1743956103593,7.99069106,1753.4,1753.3,5.429]
[1743956103800,13.48139617,1753.4,1753.0,10.15312]
[1743956104017,7.99114106,1753.2,1753.1,5.429]
[1743956104425,0.8133,1753.0,1752.8,6.16]
[1743956104621,7.99183106,1752.9,1752.8,6.16]
[1743956104925,6.99845106,1752.9,1752.8,6.16]
[1743956106600,3.0,1753.1,1752.9,3.99323]
[1743956106808,3.99845106,1753.3,1753.0,9.42205]
[1743956107031,3.0,1753.2,1753.0,10.24205]
[1743956107193,3.0,1753.2,1753.1,3.99292]
[1743956107633,3.99203,1753.5,1753.1,3.99292]
[1743956107634,3.0,1753.4,1753.1,7.98572]
[1743956107800,3.99845106,1753.5,1753.2,3.99268]
[1743956108213,3.99845106,1753.5,1753.2,7.9852]
[1743956108630,3.99845106,1753.5,1753.3,4.81231]
[1743956108823,6.99845106,1753.5,1753.4,5.429]
[1743956111096,6.99845106,1753.5,1753.4,9.42124]
[1743956111297,4.04845106,1753.9,1753.6,3.99178]
[1743956111545,4.04845106,1753.9,1753.6,4.80638]
[1743956111713,3.0,1753.8,1753.6,4.80638]
[1743956112194,3.0,1753.8,1753.5,6.16]
[1743956112398,3.99845106,1753.7,1753.5,6.16]
[1743956113000,3.99845106,1753.7,1753.5,10.15201]
[1743956113209,3.0,1753.8,1753.5,10.15191]
[1743956113409,3.0,1753.8,1753.6,3.99177]
[1743956113634,3.0,1753.8,1753.6,5.23762909]
[1743956114004,0.05,1753.9,1753.7,4.0483692]
[1743956114207,0.05,1753.9,1753.8,9.42033]
[1743956114408,0.05,1753.9,1753.8,5.429]
[1743956114636,4.83025106,1753.9,1753.5,6.16]
[1743956114839,7.99023106,1753.6,1753.5,11.588]
[1743956115154,8.77203106,1753.6,1753.5,11.588]
[1743956115724,9.32203106,1753.6,1753.5,5.428]
[1743956115924,6.99218,1753.5,1753.2,5.428]
[1743956116126,3.99845106,1753.4,1753.2,5.428]
[1743956117242,7.99070106,1753.4,1753.2,5.428]
[1743956117553,3.99269,1753.2,1753.1,11.588]
[1743956117715,10.99114106,1753.2,1753.1,5.428]
[1743956118123,6.99845106,1753.2,1753.1,5.428]
[1743956118320,10.99114106,1753.2,1753.1,5.428]
[1743956118515,10.99114106,1753.2,1753.0,5.428]
[1743956119928,14.98402106,1753.2,1753.0,5.428]
[1743956120141,3.99292,1753.1,1753.0,5.428]
[1743956120850,10.99114106,1753.2,1753.0,5.428]
[1743956121357,3.0,1753.4,1753.1,4.7529]
[1743956121556,3.0,1753.4,1753.1,8.80275585]
[1743956121720,3.0,1753.4,1753.1,4.80993585]
[1743956121927,3.0,1753.4,1753.2,3.99266]
[1743956122125,3.0,1753.4,1753.1,0.7601]
[1743956122349,6.99224,1753.4,1753.1,0.7601]
[1743956123055,3.0,1753.4,1753.1,4.8100456]
[1743956123251,7.99047106,1753.5,1753.2,3.99267]
[1743956123436,9.14451817,1753.5,1753.2,3.99267]
[1743956123936,3.99845106,1753.5,1753.2,7.98526]
[1743956124136,3.99845106,1753.5,1753.3,3.99246]
[1743956124332,3.99845106,1753.7,1753.5,3.99199]
[1743956125127,3.48302511,1753.8,1753.6,3.99178]
[1743956125128,3.99845106,1753.8,1753.6,3.99178]
[1743956125448,3.0,1753.8,1753.6,3.99178]
[1743956125851,3.0,1753.8,1753.5,3.99199]
[1743956126025,7.99001106,1753.7,1753.4,6.1891]
[1743956126227,7.99001106,1753.7,1753.5,5.429]
[1743956126443,12.85644217,1753.7,1753.5,5.429]
[1743956126667,3.99178,1753.6,1753.5,5.429]
[1743956127638,4.54178,1753.6,1753.5,5.429]
[1743956128793,7.54178,1753.6,1753.5,5.429]
[1743956132060,3.0,1753.6,1753.5,5.429]
[1743956133970,6.99178,1753.6,1753.5,5.429]
[1743956135970,3.0,1753.6,1753.5,5.429]
[1743956136806,6.99178,1753.6,1753.5,5.429]
[1743956137104,3.0,1753.6,1753.5,5.429]
[1743956137993,6.99178,1753.6,1753.5,5.429]
[1743956138170,3.0,1753.6,1753.5,5.429]
[1743956138878,6.99178,1753.6,1753.5,5.429]
[1743956140391,8.48997311,1753.6,1753.2,6.9163]
[1743956140582,7.99073106,1753.4,1753.3,5.428]
[1743956140988,3.99845106,1753.4,1753.3,5.428]
[1743956144870,7.99069106,1753.4,1753.3,5.428]
[1743956145071,3.99845106,1753.4,1753.3,5.428]
[1743956145409,3.0,1753.5,1753.3,6.40281156]
[1743956145564,3.0,1753.5,1753.4,0.8078]
[1743956146086,3.0,1753.7,1753.4,4.7999]
[1743956146471,3.0,1753.7,1753.5,0.43201156]
[1743956147283,3.0,1753.7,1753.5,4.42383156]
[1743956147486,3.0,1753.7,1753.5,4.94699472]
[1743956147689,3.0,1753.7,1753.4,4.79998]
[1743956148070,6.99157,1753.7,1753.4,0.8078]
[1743956148616,6.99157,1753.7,1753.4,4.79997]
[1743956148617,3.0,1753.7,1753.4,4.79997]
[1743956148984,0.05,1753.9,1753.7,3.99149]
[1743956149182,0.05,1753.9,1753.6,3.99176]
[1743956149381,3.05,1753.9,1753.6,3.99176]
[1743956149788,0.05,1753.9,1753.7,10.17574]
[1743956150102,3.05,1753.9,1753.7,6.1842]
[1743956150301,7.04111,1753.9,1753.7,5.427]
[1743956150511,7.98978106,1753.8,1753.7,5.427]
[1743956151281,3.99845106,1753.8,1753.7,5.427]
[1743956152623,7.04845106,1753.9,1753.7,5.427]
[1743956153690,11.03958106,1753.9,1753.7,5.427]
[1743956153885,7.04845106,1753.9,1753.7,5.427]
[1743956154283,7.04845106,1753.9,1753.8,0.43219518]
[1743956155021,0.05,1753.9,1753.8,5.20062518]
[1743956155314,0.05,1753.9,1753.8,5.2576415]
[1743956158184,0.05,1753.9,1753.8,1.20929518]
[1743956158713,0.05,1753.9,1753.8,5.20062518]
[1743956158904,8.81335106,1753.9,1753.8,0.43219518]
[1743956159100,11.81335106,1753.9,1753.8,0.43219518]
[1743956159300,3.99156,1753.7,1753.6,0.43219518]
[1743956159555,8.76381106,1753.7,1753.6,0.43219518]
[1743956160051,12.31381106,1753.7,1753.6,0.43219518]
[1743956160621,12.31381106,1753.7,1753.2,11.586]
[1743956160622,3.0,1753.4,1753.3,0.43219518]
[1743956160821,6.99845106,1753.4,1753.3,0.43219518]
[1743956161953,6.99845106,1753.6,1753.3,4.42449518]
[1743956162177,10.99023106,1753.6,1753.3,4.42449518]
[1743956163143,10.99023106,1753.6,1753.3,3.9923]
[1743956163453,3.99845106,1753.8,1753.5,3.99201]
[1743956163852,3.0,1753.7,1753.5,3.99201]
[1743956164052,3.0,1753.7,1753.4,4.77602]
[1743956164774,3.0,1753.7,1753.5,0.43157761]
[1743956164985,3.0,1753.7,1753.6,5.426]
[1743956166856,6.99156,1753.7,1753.6,5.426]
[1743956167091,3.0,1753.7,1753.6,5.426]
[1743956167762,3.99845106,1753.8,1753.6,5.426]
[1743956169461,7.98980106,1753.8,1753.6,5.426]
[1743956170424,3.99845106,1753.8,1753.6,5.426]
[1743956171602,7.98979106,1753.8,1753.6,5.426]
[1743956171808,3.99845106,1753.8,1753.6,5.426]
[1743956172613,7.04845106,1753.9,1753.6,5.426]
[1743956172798,0.05,1753.9,1753.8,3.99133]
[1743956174491,0.05,1753.9,1753.8,4.42301463]
[1743956175275,0.05,1753.9,1753.8,4.48002527]
[1743956176007,0.05,1753.9,1753.8,5.25212527]
[1743956176214,0.05,1753.9,1753.8,5.25212106]
[1743956176504,0.05,1753.9,1753.8,5.19511463]
[1743956176710,0.05,1753.9,1753.8,11.35511463]
[1743956187727,0.05,1753.9,1753.8,16.77911463]
[1743956188231,0.05,1753.9,1753.8,16.00701463]
[1743956188636,0.05,1753.9,1753.8,16.77911463]
[1743956193227,1e-05,1753.9,1753.8,16.77911463]
[1743956193957,1e-05,1753.9,1753.8,20.77756569]
[1743956196166,1e-05,1753.9,1753.8,23.77756569]
[1743956196664,1e-05,1753.9,1753.8,24.32756569]
[1743956197050,0.804,1754.7,1753.9,1.3063]
[1743956197350,3.05,1754.9,1753.9,1.3063]
[1743956197351,0.05,1754.9,1753.9,3.55]
[1743956197554,0.15,1754.9,1754.8,3.98905]
[1743956197741,0.05,1754.9,1754.8,9.41205]
[1743956197928,0.05,1754.9,1754.8,9.46902709]
[1743956198358,0.15,1754.9,1754.8,9.90071172]
[1743956198656,0.05,1754.9,1754.8,9.90071172]
[1743956199257,0.12147,1754.9,1754.8,9.90071172]
[1743956199458,0.02147,1754.9,1754.8,9.90071172]
[1743956200725,0.02147,1754.9,1754.8,9.84373463]
[1743956200931,0.02147,1754.9,1754.8,9.90071025]
[1743956201530,0.02147,1754.9,1754.8,9.84373463]
[1743956202264,0.02147,1754.9,1754.8,9.90070974]
[1743956202961,0.02147,1754.9,1754.8,9.84373463]
[1743956203129,0.02147,1754.9,1754.8,9.90070971]
[1743956203332,0.02147,1754.9,1754.8,10.65700971]
[1743956204462,4.01992106,1754.9,1754.8,9.84373463]
[1743956204631,4.01992106,1754.9,1754.8,0.43168463]
[1743956204827,4.11992106,1754.9,1754.8,5.85368463]
[1743956205028,4.11992106,1754.9,1754.8,9.84273463]
[1743956205426,4.11992106,1754.9,1754.8,9.89971516]
[1743956206164,0.02147,1754.9,1754.8,9.89971516]
[1743956206355,0.02147,1754.9,1754.8,9.84273463]
[1743956208872,0.02147,1754.9,1754.8,0.43168463]
[1743956208873,7.92392106,1754.9,1754.8,0.43168463]
[1743956209039,13.12205188,1754.9,1754.8,0.43168463]
[1743956209473,19.67205188,1754.9,1754.8,0.43168463]
[1743956210372,4.08928,1754.7,1754.6,5.421]
[1743956210540,11.91721444,1754.7,1754.6,5.421]
[1743956210741,11.86023106,1754.7,1754.6,5.421]
[1743956211575,13.44516117,1754.7,1754.6,5.421]
[1743956213277,9.45588117,1754.7,1754.6,5.421]
[1743956213450,7.87095106,1754.7,1754.6,5.421]
[1743956213845,11.86023106,1754.7,1754.6,5.421]
[1743956214275,7.87095106,1754.7,1754.6,5.421]
[1743956215276,11.86023106,1754.7,1754.6,5.421]
[1743956215575,7.87095106,1754.7,1754.6,5.421]
[1743956216747,7.09845106,1754.7,1754.6,5.421]
[1743956216955,3.99845106,1754.7,1754.6,9.41051]
[1743956217153,0.1,1754.7,1754.6,9.41046]
[1743956217554,0.1,1754.7,1754.6,9.84137446]
[1743956217755,7.09845106,1754.8,1754.6,9.84137446]
[1743956218657,7.09845106,1754.8,1754.6,9.84130446]
[1743956218854,7.09845106,1754.8,1754.6,9.41039]
[1743956219273,7.09845106,1754.8,1754.6,5.421]
[1743956219480,0.1,1754.7,1754.6,5.421]
[1743956220571,4.86848,1754.7,1754.6,5.421]
[1743956220772,0.8792,1754.7,1754.6,5.421]
[1743956221193,0.8792,1754.7,1754.1,4.78091]
[1743956221194,0.7792,1754.3,1754.2,3.99033]
[1743956221494,3.99845106,1754.3,1754.2,13.45859941]
[1743956221700,3.99845106,1754.3,1754.2,14.1919]
[1743956222263,0.1,1754.4,1754.3,3.99019]
[1743956222700,0.1,1754.4,1754.3,4.42155963]
[1743956222900,4.09845106,1754.5,1754.3,8.41174963]
[1743956223110,4.09845106,1754.5,1754.4,3.98996]
[1743956223111,3.99845106,1754.5,1754.4,3.98996]
[1743956223411,10.09845106,1754.7,1754.5,3.98974]
[1743956223608,7.09845106,1754.7,1754.6,9.41051]
[1743956223894,4.11992106,1754.9,1754.7,3.98922]
[1743956224096,0.1,1754.8,1754.6,9.84180963]
[1743956224267,4.77765106,1754.7,1754.6,5.85236963]
[1743956224466,4.87765106,1754.7,1754.6,5.85236963]
[1743956224672,8.86693106,1754.7,1754.6,5.85236963]
[1743956224875,11.86693106,1754.7,1754.6,5.85236963]
[1743956225079,18.71454438,1754.7,1754.6,5.421]
[1743956225308,19.49374438,1754.7,1754.6,5.421]
[1743956226385,17.86693106,1754.7,1754.6,5.421]
[1743956227371,18.41693106,1754.7,1754.6,5.421]
[1743956227617,18.41693106,1754.7,1753.9,4.78139]
[1743956227618,0.1,1754.3,1753.9,4.78139]
[1743956227801,3.99845106,1754.0,1753.9,3.99109]
[1743956228105,3.99845106,1754.0,1753.9,9.41209]
[1743956228398,0.1,1754.1,1753.9,4.42250192]
[1743956228597,0.1,1754.1,1753.9,9.84350192]
[1743956229004,0.1,1754.1,1753.9,0.43141192]
[1743956229005,3.99845106,1754.0,1753.9,0.43141192]
[1743956229302,3.99845106,1754.0,1753.9,5.85241192]
[1743956230215,3.99845106,1754.0,1753.9,9.84351192]
[1743956232917,0.1,1754.1,1754.0,3.99087]
[1743956234029,0.1,1754.1,1753.9,9.84351192]
[1743956234578,0.1,1754.1,1753.9,13.83447192]
[1743956234817,0.1,1754.1,1753.9,9.84337192]